[Event "Nové Hrady - Rapid A"]
[Site "Nové Hrady, Czech Republic"]
[Date "2024.08.10"]
[Round "4.1"]
[White "Steinbauer, Sebastián"]
[Black "Prinz, Hubert"]
[Result "1-0"]
[TimeControl "2x15min+5s"]
[WhiteFideId "399272"]
[BlackFideId "1639447"]
[WhiteElo "2018"]
[BlackElo "1986"]

1. e4 {[%emt 00:00:02]} d5 2. exd5 {[%clk 00:15:11]} Qxd5 {[%clk 00:15:14]} 3.
d4 {[%clk 00:15:15]} {[%emt 00:00:02]} Nf6 {[%clk 00:15:16]} {[%emt 00:00:03]}
4. Nc3 {[%clk 00:15:19]} Qd6 {[%clk 00:15:20]} 5. Nf3 {[%clk 00:15:19]} {[%emt
00:00:06]} a6 {[%clk 00:15:24]} 6. Bg5 {[%clk 00:15:01]} {[%emt 00:00:24]} Nbd7
{[%clk 00:15:27]} 7. Bd3 {[%clk 00:14:48]} {[%emt 00:00:18]} e6 {[%clk
00:15:21]} {[%emt 00:00:11]} 8. O-O {[%clk 00:14:45]} {[%emt 00:00:08]} Be7
{[%clk 00:15:25]} 9. Ne4 {[%clk 00:14:41]} {[%emt 00:00:10]} Nxe4 {[%clk
00:15:23]} {[%emt 00:00:06]} 10. Bxe4 {[%clk 00:14:02]} {[%emt 00:00:45]} c6
{[%clk 00:15:27]} 11. Re1 {[%clk 00:13:34]} {[%emt 00:00:33]} Nf6 {[%clk
00:15:10]} {[%emt 00:00:21]} 12. c3 {[%clk 00:12:42]} {[%emt 00:00:58]} h6
{[%clk 00:15:13]} {[%emt 00:00:02]} 13. Bh4 {[%clk 00:12:42]} {[%emt 00:00:05]}
O-O {[%clk 00:15:04]} {[%emt 00:00:14]} 14. Bc2 {[%clk 00:12:43]} {[%emt
00:00:04]} b5 {[%clk 00:12:45]} {[%emt 00:02:25]} 15. Qd3 {[%clk 00:12:46]}
{[%emt 00:00:02]} g6 {[%clk 00:12:49]} 16. Ne5 {[%clk 00:12:50]} {[%emt
00:00:02]} Ng4 {[%clk 00:07:39]} {[%emt 00:05:14]} 17. Bxe7 {[%clk 00:12:30]}
{[%emt 00:00:25]} Nxe5 {[%clk 00:07:42]} {[%emt 00:00:02]} 18. Bxd6 {[%clk
00:12:28]} {[%emt 00:00:06]} Nxd3 {[%clk 00:07:46]} {[%emt 00:00:02]} 19. Bxd3
{[%clk 00:12:32]} Rd8 {[%clk 00:07:45]} {[%emt 00:00:06]} 20. Be5 {[%clk
00:12:34]} {[%emt 00:00:03]} Bb7 {[%clk 00:07:46]} {[%emt 00:00:05]} 21. Be4
{[%clk 00:12:37]} {[%emt 00:00:02]} Rac8 {[%clk 00:07:49]} 22. b4 {[%clk
00:12:29]} {[%emt 00:00:13]} f5 {[%clk 00:07:38]} {[%emt 00:00:16]} 23. Bf3
{[%clk 00:12:31]} {[%emt 00:00:03]} g5 {[%clk 00:07:39]} {[%emt 00:00:03]} 24.
h3 {[%clk 00:12:35]} {[%emt 00:00:02]} Kf7 {[%clk 00:07:43]} 25. a4 {[%clk
00:12:39]} {[%emt 00:00:02]} Kg6 {[%clk 00:07:36]} {[%emt 00:00:11]} 26. axb5
{[%clk 00:12:42]} {[%emt 00:00:02]} axb5 {[%clk 00:07:40]} 27. Ra7 {[%clk
00:12:46]} {[%emt 00:00:03]} Rd7 {[%clk 00:07:37]} {[%emt 00:00:08]} 28. c4
{[%clk 00:12:32]} {[%emt 00:00:19]} bxc4 {[%clk 00:07:31]} {[%emt 00:00:10]} 29.
b5 {[%clk 00:12:36]} {[%emt 00:00:02]} h5 {[%clk 00:07:18]} {[%emt 00:00:17]}
30. bxc6 {[%clk 00:12:38]} {[%emt 00:00:03]} Bxc6 {[%clk 00:07:23]} 31. Rxd7
{[%clk 00:12:34]} {[%emt 00:00:10]} Bxd7 {[%clk 00:07:27]} 32. Rc1 {[%clk
00:12:36]} {[%emt 00:00:03]} Ba4 {[%clk 00:07:00]} {[%emt 00:00:33]} 33. Rc3
{[%clk 00:12:06]} {[%emt 00:00:35]} Bb3 {[%clk 00:07:01]} {[%emt 00:00:04]} 34.
Be2 {[%clk 00:12:10]} {[%emt 00:00:02]} g4 {[%clk 00:06:48]} {[%emt 00:00:17]}
35. hxg4 {[%clk 00:12:13]} {[%emt 00:00:02]} hxg4 {[%clk 00:06:51]} 36. Kh2
{[%clk 00:12:08]} {[%emt 00:00:12]} Kg5 {[%emt 00:00:11]} 37. Kg3 {[%emt
00:00:34]} Rf8 {[%clk 00:06:24]} 38. f4+ {[%emt 00:00:10]} gxf3 {[%clk
00:06:24]} {[%emt 00:00:04]} 39. Kxf3 {[%clk 00:12:02]} {[%emt 00:00:03]} Rc8
{[%clk 00:06:18]} {[%emt 00:00:11]} 40. g3 {[%clk 00:12:03]} {[%emt 00:00:04]}
Ba2 {[%clk 00:06:16]} {[%emt 00:00:07]} 41. Ke3 {[%emt 00:00:11]} Rc6 {[%clk
00:05:51]} {[%emt 00:00:21]} 42. Kd2 {[%clk 00:12:10]} Rb6 {[%emt 00:00:46]} 43.
Bxc4 {[%clk 00:11:38]} {[%emt 00:00:06]} Rb2+ {[%emt 00:00:40]} 44. Kc1 {[%clk
00:11:25]} {[%emt 00:00:11]} Rg2 {[%clk 00:04:37]} {[%emt 00:00:39]} 45. Bxa2
{[%clk 00:11:18]} {[%emt 00:00:13]} Rxa2 {[%clk 00:04:41]} 46. Rc6 {[%clk
00:11:19]} {[%emt 00:00:05]} Kg4 {[%clk 00:04:41]} {[%emt 00:00:06]} 47. Rxe6
{[%clk 00:11:22]} {[%emt 00:00:02]} Kf3 {[%clk 00:04:45]} 48. Kb1 {[%clk
00:11:13]} {[%emt 00:00:15]} Rg2 {[%clk 00:04:44]} {[%emt 00:00:06]} 49. d5
{[%clk 00:10:41]} {[%emt 00:00:37]} Ke4 {[%clk 00:04:48]} {[%emt 00:00:02]} 50.
d6 {[%clk 00:10:44]} Kd5 {[%clk 00:04:39]} {[%emt 00:00:14]} 51. d7 {[%clk
00:10:42]} {[%emt 00:00:07]} Kxe6 {[%clk 00:04:42]} {[%emt 00:00:02]} 52. d8=Q
{[%clk 00:10:46]} Kxe5 {[%clk 00:04:44]} {[%emt 00:00:03]} 53. Qc7+ {[%clk
00:10:49]} {[%emt 00:00:02]} Kd4 {[%clk 00:04:44]} {[%emt 00:00:05]} 54. Qf4+
{[%clk 00:10:51]} {[%emt 00:00:03]} Kc5 {[%clk 00:04:36]} {[%emt 00:00:13]} 55.
Qxf5+ {[%clk 00:10:55]} Kd6 {[%clk 00:04:37]} {[%emt 00:00:06]} 56. g4 {[%clk
00:10:58]} Ke7 {[%clk 00:04:33]} {[%emt 00:00:08]} 57. g5 {[%clk 00:11:02]}
{[%emt 00:00:02]} Re2 {[%clk 00:04:13]} {[%emt 00:00:25]} 58. g6 {[%clk
00:11:01]} {[%emt 00:00:05]} Re6 {[%clk 00:04:14]} {[%emt 00:00:05]} 59. g7
{[%clk 00:11:00]} {[%emt 00:00:05]} Rf6 {[%clk 00:04:18]} 60. g8=N+ {[%clk
00:11:01]} {[%emt 00:00:06]} 1-0

[Event "Nové Hrady - Rapid A"]
[Site "Nové Hrady, Czech Republic"]
[Date "2024.08.10"]
[Round "4.2"]
[White "Šebesta, Marek"]
[Black "Hák, David"]
[Result "0-1"]
[TimeControl "2x15min+5s"]
[WhiteFideId "23765119"]
[BlackFideId "377007"]
[WhiteElo "1707"]
[BlackElo "2192"]

1. e4 {[%clk 00:15:09]} {[%emt 00:01:02]} c5 {[%clk 00:15:09]} 2. Nf3 {[%clk
00:15:13]} {[%emt 00:00:01]} Nc6 {[%clk 00:15:13]} 3. d4 {[%clk 00:15:17]} cxd4
{[%clk 00:15:17]} 4. Nxd4 {[%clk 00:15:21]} g6 {[%clk 00:15:20]} {[%emt
00:00:05]} 5. Nc3 {[%clk 00:15:21]} {[%emt 00:00:06]} Bg7 {[%clk 00:15:21]}
{[%emt 00:00:03]} 6. Be3 {[%clk 00:15:24]} {[%emt 00:00:02]} Nf6 {[%clk
00:15:21]} {[%emt 00:00:05]} 7. Bc4 {[%clk 00:15:27]} {[%emt 00:00:02]} O-O
{[%clk 00:15:22]} {[%emt 00:00:04]} 8. f3 {[%clk 00:15:28]} {[%emt 00:00:04]}
Qb6 {[%clk 00:15:12]} {[%emt 00:00:15]} 9. Bb3 {[%clk 00:14:08]} {[%emt
00:01:25]} Nxe4 {[%clk 00:15:15]} {[%emt 00:00:02]} 10. Nxe4 {[%clk 00:13:53]}
{[%emt 00:00:20]} Bxd4 {[%clk 00:14:39]} {[%emt 00:00:40]} 11. Bxd4 {[%clk
00:13:21]} {[%emt 00:00:38]} Qxd4 {[%clk 00:14:12]} {[%emt 00:00:32]} 12. Qxd4
{[%clk 00:13:25]} Nxd4 {[%clk 00:14:15]} {[%emt 00:00:03]} 13. h4 {[%clk
00:12:25]} {[%emt 00:01:06]} d5 {[%clk 00:13:06]} {[%emt 00:01:14]} 14. Nc3
{[%clk 00:11:40]} {[%emt 00:00:50]} Be6 {[%clk 00:12:38]} {[%emt 00:00:32]} 15.
O-O-O {[%clk 00:11:20]} {[%emt 00:00:24]} Nxb3+ {[%clk 00:12:42]} {[%emt
00:00:02]} 16. axb3 {[%clk 00:11:23]} {[%emt 00:00:02]} Rfd8 {[%clk 00:12:40]}
{[%emt 00:00:07]} 17. Rd4 {[%clk 00:11:16]} {[%emt 00:00:12]} Rd7 {[%clk
00:12:05]} {[%emt 00:00:39]} 18. h5 {[%clk 00:11:12]} {[%emt 00:00:10]} f6
{[%clk 00:11:44]} {[%emt 00:00:26]} 19. hxg6 {[%clk 00:10:47]} {[%emt
00:00:29]} hxg6 {[%clk 00:10:19]} {[%emt 00:01:31]} 20. Rdh4 {[%clk 00:10:47]}
{[%emt 00:00:05]} Kf8 {[%clk 00:10:18]} {[%emt 00:00:05]} 21. Rh8+ {[%clk
00:10:02]} {[%emt 00:00:51]} Bg8 {[%clk 00:10:22]} {[%emt 00:00:01]} 22. g4
{[%clk 00:08:49]} {[%emt 00:01:18]} Rad8 {[%clk 00:09:00]} {[%emt 00:01:26]} 23.
f4 {[%clk 00:08:20]} {[%emt 00:00:35]} Kg7 {[%clk 00:07:58]} {[%emt 00:01:07]}
24. g5 {[%clk 00:07:51]} {[%emt 00:00:34]} f5 {[%clk 00:07:41]} {[%emt
00:00:22]} 25. Nb5 {[%clk 00:07:17]} {[%emt 00:00:39]} d4 {[%clk 00:07:05]}
{[%emt 00:00:41]} 26. Nxa7 {[%clk 00:07:04]} {[%emt 00:00:18]} Rd5 {[%clk
00:05:04]} {[%emt 00:02:06]} 27. c4 {[%clk 00:06:40]} {[%emt 00:00:30]} dxc3
{[%clk 00:04:59]} {[%emt 00:00:10]} 28. bxc3 {[%clk 00:06:14]} {[%emt
00:00:30]} Ra5 {[%clk 00:04:52]} {[%emt 00:00:11]} 29. R1h7+ {[%clk 00:05:56]}
{[%emt 00:00:24]} Bxh7 {[%clk 00:04:56]} 30. Rxd8 {[%clk 00:06:00]} Rxa7 {[%clk
00:04:59]} {[%emt 00:00:05]} 31. Rd7 {[%clk 00:06:04]} Kf7 {[%clk 00:04:55]}
{[%emt 00:00:09]} 32. c4 {[%clk 00:06:07]} {[%emt 00:00:02]} Ke6 {[%clk
00:04:54]} {[%emt 00:00:05]} 33. Rd8 {[%clk 00:06:02]} {[%emt 00:00:10]} Kf7
{[%clk 00:04:51]} {[%emt 00:00:09]} 34. Rd7 {[%clk 00:06:03]} {[%emt 00:00:04]}
Ke8 {[%clk 00:04:45]} {[%emt 00:00:11]} 35. Rd3 {[%clk 00:05:06]} {[%emt
00:01:03]} Bg8 {[%clk 00:04:42]} {[%emt 00:00:07]} 36. Kb2 {[%clk 00:05:03]}
{[%emt 00:00:08]} Ra8 {[%clk 00:04:39]} {[%emt 00:00:08]} 37. c5 {[%clk
00:04:42]} {[%emt 00:00:26]} Ra5 {[%clk 00:04:29]} {[%emt 00:00:15]} 38. b4
{[%clk 00:04:18]} {[%emt 00:00:30]} Ra2+ {[%clk 00:04:33]} 39. Kc3 {[%clk
00:04:01]} {[%emt 00:00:23]} Ra3+ {[%clk 00:04:36]} {[%emt 00:00:02]} 40. Kd4
{[%clk 00:04:05]} Rxd3+ {[%clk 00:04:30]} {[%emt 00:00:10]} 41. Kxd3 {[%clk
00:04:09]} {[%emt 00:00:02]} Kd7 {[%clk 00:04:19]} {[%emt 00:00:16]} 42. b5
{[%clk 00:04:00]} {[%emt 00:00:14]} Bd5 {[%clk 00:04:18]} {[%emt 00:00:06]} 43.
Kd4 {[%clk 00:04:03]} {[%emt 00:00:03]} Bf3 {[%clk 00:04:13]} {[%emt 00:00:08]}
44. Ke5 {[%clk 00:03:47]} {[%emt 00:00:22]} Be2 {[%clk 00:04:13]} {[%emt
00:00:04]} 45. c6+ {[%clk 00:03:37]} {[%emt 00:00:16]} bxc6 {[%clk 00:04:13]}
{[%emt 00:00:05]} 46. bxc6+ {[%clk 00:03:39]} {[%emt 00:00:03]} Kxc6 {[%clk
00:04:16]} {[%emt 00:00:02]} 47. Ke6 {[%clk 00:03:43]} Kc5 {[%clk 00:04:15]}
{[%emt 00:00:07]} 48. Kxe7 {[%clk 00:03:46]} {[%emt 00:00:02]} Kd4 {[%clk
00:04:16]} {[%emt 00:00:04]} 49. Kf6 {[%clk 00:03:44]} {[%emt 00:00:07]} Bh5
{[%clk 00:04:20]} {[%emt 00:00:02]} 50. Ke6 {[%clk 00:03:43]} {[%emt 00:00:06]}
Ke4 {[%clk 00:04:23]} {[%emt 00:00:01]} 51. Kf6 {[%clk 00:03:46]} {[%emt
00:00:02]} Kxf4 {[%clk 00:04:26]} {[%emt 00:00:02]} 52. Kg7 {[%clk 00:03:47]}
{[%emt 00:00:04]} Kxg5 {[%clk 00:04:29]} 53. Kh8 {[%clk 00:03:51]} {[%emt
00:00:14]} Kf6 {[%clk 00:04:32]} 54. Kg8 {[%clk 00:03:55]} f4 {[%clk 00:04:36]}
55. Kh8 {[%clk 00:03:59]} f3 {[%clk 00:04:40]} 56. Kg8 {[%clk 00:04:03]} f2
{[%clk 00:04:44]} 57. Kh8 {[%clk 00:04:07]} f1=Q {[%clk 00:04:46]} 58. Kh7
{[%clk 00:04:12]} Qc1 {[%clk 00:04:42]} {[%emt 00:00:08]} 59. Kg8 {[%clk
00:04:15]} {[%emt 00:00:03]} Qc8+ {[%clk 00:04:45]} {[%emt 00:00:02]} 60. Kh7
{[%clk 00:04:18]} Qd7+ {[%clk 00:04:49]} 61. Kh6 {[%clk 00:04:20]} {[%emt
00:00:04]} Qg7 {[%clk 00:04:53]} 0-1

[Event "Nové Hrady - Rapid A"]
[Site "Nové Hrady, Czech Republic"]
[Date "2024.08.10"]
[Round "4.3"]
[White "Garabik, Marek"]
[Black "Borecký, Andrej"]
[Result "1-0"]
[TimeControl "2x15min+5s"]
[WhiteFideId "23717742"]
[BlackFideId "23752670"]
[WhiteElo "1933"]
[BlackElo "1618"]

1. e4 {[%clk 00:15:08]} {[%emt 00:00:03]} c5 {[%clk 00:15:00]} {[%emt
00:00:10]} 2. Nc3 {[%clk 00:15:12]} {[%emt 00:00:01]} Nc6 {[%clk 00:14:50]}
{[%emt 00:00:16]} 3. f4 {[%clk 00:15:15]} e6 {[%clk 00:14:37]} {[%emt
00:00:18]} 4. Nf3 {[%clk 00:15:18]} {[%emt 00:00:01]} d5 {[%clk 00:14:28]}
{[%emt 00:00:14]} 5. Bb5 {[%clk 00:15:03]} {[%emt 00:00:21]} Nf6 {[%clk
00:13:47]} {[%emt 00:00:46]} 6. Bxc6+ {[%clk 00:14:24]} {[%emt 00:00:43]} bxc6
{[%clk 00:13:51]} {[%emt 00:00:02]} 7. e5 {[%clk 00:14:28]} Nd7 {[%clk
00:13:49]} {[%emt 00:00:08]} 8. d3 {[%clk 00:14:31]} {[%emt 00:00:02]} f6
{[%clk 00:13:16]} {[%emt 00:00:37]} 9. O-O {[%clk 00:12:48]} {[%emt 00:01:49]}
Be7 {[%clk 00:13:00]} {[%emt 00:00:21]} 10. Qe2 {[%clk 00:12:41]} {[%emt
00:00:12]} O-O {[%clk 00:11:51]} {[%emt 00:01:14]} 11. b3 {[%clk 00:12:19]}
{[%emt 00:00:27]} Nb6 {[%clk 00:10:23]} {[%emt 00:01:33]} 12. Ba3 {[%clk
00:11:20]} {[%emt 00:01:04]} a5 {[%clk 00:09:22]} {[%emt 00:01:06]} 13. Qf2
{[%clk 00:10:57]} {[%emt 00:00:28]} fxe5 {[%clk 00:06:57]} {[%emt 00:02:30]} 14.
Nxe5 {[%clk 00:07:39]} {[%emt 00:03:23]} Bd6 {[%clk 00:05:15]} {[%emt
00:01:47]} 15. Qe2 {[%clk 00:00:38]} {[%emt 00:07:06]} Bb7 {[%clk 00:04:36]}
{[%emt 00:00:44]} 16. Rae1 {[%clk 00:00:23]} {[%emt 00:00:20]} Qc7 {[%clk
00:03:51]} {[%emt 00:00:51]} 17. Nd1 {[%clk 00:00:12]} {[%emt 00:00:16]} a4
{[%clk 00:03:36]} {[%emt 00:00:20]} 18. Bb2 {[%clk 00:00:15]} axb3 {[%clk
00:03:08]} {[%emt 00:00:34]} 19. axb3 {[%clk 00:00:19]} Rae8 {[%clk 00:02:27]}
{[%emt 00:00:47]} 20. g3 {[%clk 00:00:18]} {[%emt 00:00:06]} Nd7 {[%clk
00:02:17]} {[%emt 00:00:15]} 21. Nxd7 {[%clk 00:00:18]} {[%emt 00:00:04]} Qxd7
{[%clk 00:02:21]} 22. Be5 {[%clk 00:00:21]} {[%emt 00:00:04]} Qc7 {[%clk
00:01:47]} {[%emt 00:00:40]} 23. Bxd6 {[%clk 00:00:24]} {[%emt 00:00:01]} Qxd6
{[%clk 00:01:51]} {[%emt 00:00:02]} 24. Qe5 {[%clk 00:00:26]} {[%emt 00:00:03]}
Qd7 {[%clk 00:01:34]} {[%emt 00:00:21]} 25. Nb2 {[%clk 00:00:27]} {[%emt
00:00:05]} Rf5 {[%clk 00:01:34]} {[%emt 00:00:04]} 26. Qe3 {[%clk 00:00:27]}
{[%emt 00:00:05]} Kf7 {[%clk 00:01:18]} {[%emt 00:00:21]} 27. Qxc5 {[%clk
00:00:24]} {[%emt 00:00:08]} d4 {[%clk 00:01:07]} {[%emt 00:00:16]} 28. Re5
{[%clk 00:00:28]} {[%emt 00:00:01]} Rxe5 {[%clk 00:00:27]} {[%emt 00:00:45]} 29.
fxe5+ {[%clk 00:00:32]} Kg8 {[%clk 00:00:31]} 30. Nc4 {[%clk 00:00:33]} {[%emt
00:00:06]} Qd5 {[%clk 00:00:24]} {[%emt 00:00:13]} 31. Qxd5 {[%clk 00:00:33]}
{[%emt 00:00:05]} exd5 {[%clk 00:00:27]} 32. Nd6 {[%clk 00:00:34]} {[%emt
00:00:04]} Re7 {[%clk 00:00:30]} {[%emt 00:00:03]} 33. Re1 {[%clk 00:00:27]}
{[%emt 00:00:12]} Ba6 {[%clk 00:00:29]} {[%emt 00:00:05]} 34. Nf5 {[%clk
00:00:28]} {[%emt 00:00:04]} Re6 {[%clk 00:00:31]} {[%emt 00:00:03]} 35. Nxd4
{[%clk 00:00:32]} Rg6 {[%clk 00:00:24]} {[%emt 00:00:12]} 36. e6 {[%clk
00:00:35]} {[%emt 00:00:02]} Kf8 {[%clk 00:00:22]} {[%emt 00:00:07]} 37. Nxc6
{[%clk 00:00:31]} {[%emt 00:00:08]} Bb7 {[%clk 00:00:21]} {[%emt 00:00:07]} 38.
Na5 {[%clk 00:00:16]} {[%emt 00:00:20]} Bc8 {[%clk 00:00:17]} {[%emt 00:00:08]}
39. e7+ {[%clk 00:00:20]} {[%emt 00:00:02]} Ke8 {[%clk 00:00:22]} 40. b4 {[%clk
00:00:20]} {[%emt 00:00:06]} Be6 {[%clk 00:00:15]} {[%emt 00:00:11]} 41. Nc6
{[%clk 00:00:18]} {[%emt 00:00:07]} Bd7 {[%clk 00:00:07]} {[%emt 00:00:14]} 42.
Nd4 {[%clk 00:00:18]} {[%emt 00:00:04]} Rb6 {[%clk 00:00:07]} {[%emt 00:00:05]}
43. c3 {[%clk 00:00:20]} {[%emt 00:00:03]} Bc8 {[%clk 00:00:07]} {[%emt
00:00:05]} 44. Kf2 {[%clk 00:00:19]} {[%emt 00:00:06]} Rb7 {[%clk 00:00:07]}
{[%emt 00:00:06]} 45. Nb3 {[%clk 00:00:10]} {[%emt 00:00:14]} Rc7 {[%clk
00:00:07]} {[%emt 00:00:05]} 46. Nc5 {[%clk 00:00:14]} {[%emt 00:00:01]} Rc6
{[%clk 00:00:00]} {[%emt 00:00:06]} 1-0

[Event "Nové Hrady - Rapid A"]
[Site "Nové Hrady, Czech Republic"]
[Date "2024.08.10"]
[Round "4.4"]
[White "Černý, Zbyšek"]
[Black "Dudarec, Elias"]
[Result "0-1"]
[TimeControl "2x15min+5s"]
[WhiteFideId "23739380"]
[BlackFideId "23714930"]
[WhiteElo "1560"]
[BlackElo "1588"]

1. d4 {[%clk 00:15:06]} {[%emt 00:00:04]} Nf6 {[%clk 00:15:08]} {[%emt
00:00:02]} 2. c4 {[%clk 00:15:09]} {[%emt 00:00:01]} g6 {[%clk 00:15:12]}
{[%emt 00:00:02]} 3. Nc3 {[%clk 00:15:11]} {[%emt 00:00:03]} d5 {[%clk
00:15:16]} {[%emt 00:00:01]} 4. e3 {[%clk 00:15:08]} {[%emt 00:00:08]} Bg7
{[%clk 00:15:08]} {[%emt 00:00:13]} 5. Nf3 {[%clk 00:15:09]} {[%emt 00:00:03]}
O-O {[%clk 00:15:08]} {[%emt 00:00:06]} 6. Bd3 {[%clk 00:15:04]} {[%emt
00:00:11]} b6 {[%clk 00:14:55]} {[%emt 00:00:17]} 7. O-O {[%clk 00:15:06]}
{[%emt 00:00:03]} Bb7 {[%clk 00:14:58]} {[%emt 00:00:03]} 8. b3 {[%clk
00:14:52]} {[%emt 00:00:18]} e6 {[%clk 00:14:25]} {[%emt 00:00:38]} 9. Bb2
{[%clk 00:14:52]} {[%emt 00:00:05]} Nbd7 {[%clk 00:14:25]} {[%emt 00:00:04]} 10.
Rc1 {[%clk 00:14:42]} {[%emt 00:00:15]} Rc8 {[%clk 00:14:16]} {[%emt 00:00:15]}
11. Bb1 {[%clk 00:14:31]} {[%emt 00:00:28]} c5 {[%clk 00:13:52]} {[%emt
00:00:17]} 12. Nb5 {[%clk 00:13:20]} {[%emt 00:01:15]} a6 {[%clk 00:10:45]}
{[%emt 00:03:12]} 13. Nd6 {[%clk 00:13:15]} {[%emt 00:00:11]} Rc7 {[%clk
00:10:37]} {[%emt 00:00:12]} 14. Nxb7 {[%clk 00:13:07]} {[%emt 00:00:14]} Rxb7
{[%clk 00:10:40]} {[%emt 00:00:02]} 15. dxc5 {[%clk 00:12:29]} {[%emt
00:00:42]} Nxc5 {[%clk 00:09:52]} {[%emt 00:00:53]} 16. cxd5 {[%clk 00:10:32]}
{[%emt 00:02:02]} Nxd5 {[%clk 00:09:25]} {[%emt 00:00:31]} 17. Bxg7 {[%clk
00:09:37]} {[%emt 00:01:00]} Kxg7 {[%clk 00:09:11]} {[%emt 00:00:18]} 18. Qd4+
{[%clk 00:09:29]} {[%emt 00:00:14]} Qf6 {[%clk 00:07:47]} {[%emt 00:01:30]} 19.
Rfd1 {[%clk 00:08:09]} {[%emt 00:01:25]} Qxd4 {[%clk 00:07:08]} {[%emt
00:00:44]} 20. Nxd4 {[%clk 00:08:11]} {[%emt 00:00:04]} Kf6 {[%clk 00:05:41]}
{[%emt 00:01:31]} 21. g3 {[%clk 00:07:33]} {[%emt 00:00:43]} Rd7 {[%clk
00:04:48]} {[%emt 00:00:58]} 22. Nf3 {[%clk 00:06:06]} {[%emt 00:01:32]} Rfd8
{[%clk 00:04:02]} {[%emt 00:00:51]} 23. e4 {[%clk 00:04:49]} {[%emt 00:01:21]}
Nb4 {[%clk 00:04:02]} {[%emt 00:00:06]} 24. Rxd7 {[%clk 00:04:38]} {[%emt
00:00:16]} Rxd7 {[%clk 00:04:02]} {[%emt 00:00:06]} 25. Kg2 {[%clk 00:04:20]}
{[%emt 00:00:22]} e5 {[%clk 00:03:27]} {[%emt 00:00:41]} 26. a3 {[%clk
00:04:06]} {[%emt 00:00:19]} Nbd3 {[%clk 00:02:43]} {[%emt 00:00:48]} 27. Bxd3
{[%clk 00:04:03]} {[%emt 00:00:08]} Rxd3 {[%clk 00:02:40]} {[%emt 00:00:09]} 28.
b4 {[%clk 00:03:47]} {[%emt 00:00:20]} Nxe4 {[%clk 00:02:40]} {[%emt 00:00:05]}
29. Rc6+ {[%clk 00:03:43]} {[%emt 00:00:08]} Rd6 {[%clk 00:02:20]} {[%emt
00:00:26]} 30. Rxd6+ {[%clk 00:02:38]} {[%emt 00:01:10]} Nxd6 {[%clk 00:02:24]}
{[%emt 00:00:02]} 31. Nd2 {[%clk 00:02:37]} {[%emt 00:00:05]} b5 {[%clk
00:02:14]} {[%emt 00:00:15]} 32. Kf3 {[%clk 00:02:36]} {[%emt 00:00:05]} h5
{[%clk 00:01:53]} {[%emt 00:00:27]} 33. Ne4+ {[%clk 00:02:26]} {[%emt
00:00:16]} Nxe4 {[%clk 00:01:56]} {[%emt 00:00:02]} 34. Kxe4 {[%clk 00:02:29]}
{[%emt 00:00:01]} Ke6 {[%clk 00:01:59]} 35. h3 {[%clk 00:02:13]} {[%emt
00:00:22]} f5+ {[%clk 00:02:02]} {[%emt 00:00:03]} 36. Ke3 {[%clk 00:02:15]}
{[%emt 00:00:03]} Kd5 {[%clk 00:02:06]} 37. Kd3 {[%clk 00:02:17]} {[%emt
00:00:04]} g5 {[%clk 00:02:01]} {[%emt 00:00:10]} 38. f3 {[%clk 00:02:00]}
{[%emt 00:00:22]} e4+ {[%clk 00:01:56]} {[%emt 00:00:11]} 39. fxe4+ {[%clk
00:01:46]} {[%emt 00:00:17]} fxe4+ {[%clk 00:02:00]} 40. Ke3 {[%clk 00:01:49]}
{[%emt 00:00:04]} Ke5 {[%clk 00:02:04]} 41. Ke2 {[%clk 00:01:29]} {[%emt
00:00:26]} Kd4 {[%clk 00:02:07]} {[%emt 00:00:02]} 42. Kd2 {[%clk 00:01:33]}
e3+ {[%clk 00:02:09]} {[%emt 00:00:04]} 43. Ke2 {[%clk 00:01:37]} Ke4 {[%clk
00:02:13]} 44. Ke1 {[%clk 00:01:40]} {[%emt 00:00:03]} Kf3 {[%clk 00:02:17]} 45.
Kf1 {[%clk 00:01:44]} Kxg3 {[%clk 00:02:18]} {[%emt 00:00:07]} 46. Ke2 {[%clk
00:01:48]} Kxh3 {[%clk 00:02:22]} 0-1